Cogmind - Beta 17 @@@ ROGUE MODE // 2026.07.14 @ 23:36:00 Player: TheSkyeDoctor Result: Destroyed by Y-45 Defender with Heavy Assault Rifle Performance ------------- Evolutions (2) 1000 Regions Visited (8) 1600 Robots Destroyed (46) 230 Value Destroyed (1651) 1651 Prototype IDs (24) 480 Alien Tech Used (0) 0 Bonus (7813) 7813 TOTAL SCORE: 12774 Bonus ------- High Alert Combat Kills 224 Follower Combat Kills 67 Prayed to X0-1V1 5000 Major X0-1V1 Interference 1550 Entered Garrisons 200 Used RIF Installer 500 Aligned with FarCom 300 Friendly Fire -28 Cogmind --------- Core Integrity 0/450 Matter 391/700 Energy 885/900 System Corruption 12% Temperature Cool (9) Movement Core (450) Ox8 Location -8/Storage Parts ------- > --- POWER (2) -------- (None) > --- PROPULSION (4) --- (None) > --- UTILITY (3) ------ Large Storage Unit X0-1V1's Piety Tracker > --- WEAPON (2) ------- Great Axe > --- INVENTORY (16) --- Medium Storage Unit Improved Terrain Scanner Terrain Scan Processor Seismic Detector Light Armor Plating Authchip [R/Combat] Relay Coupler [NC] (26) Relay Coupler [Grunt] (99) Relay Coupler [Grunt] (27) Relay Coupler [Hunter] (20) Light EM Pulse Cannon Mining Laser Peak State ------------ > --- POWER ------------ Light Nuclear Core Fission Core > --- PROPULSION ------- Flying Fortress v7 > --- UTILITY ---------- Large Storage Unit Hacking Suite X0-1V1's Piety Tracker > --- WEAPON ----------- Coil Gun Great Axe > --- INVENTORY -------- Ion Engine Light Nuclear Core Wheel Medium Storage Unit Improved Terrain Scanner Terrain Scan Processor Seismic Detector Relay Coupler [NC] Relay Coupler [Grunt] Relay Coupler [Grunt] Pulse Rifle Light EM Pulse Cannon Mining Laser [Rating: 68] Favorites ----------- Power Ion Engine Engine Ion Engine Power Core Light Nuclear Core Propulsion Light Treads Treads Light Treads Wheel Wheel Hover Unit Gravmag System Flight Unit Flying Fortress v7 Utility Large Storage Unit Device X0-1V1's Piety Tracker Storage Large Storage Unit Hackware Hacking Suite Protection Light Armor Plating Weapon Small Laser Energy Gun Small Laser Energy Cannon Light EM Pulse Cannon Ballistic Gun Assault Rifle Launcher Grenade Launcher Slashing Weapon Great Axe Build | -11 -10 -9 -9 -9 -8 -8 -8 -8 ------- Run | Yrd Mat Mat Min Exi Min Mat Gar Sto Slots Evolved 4 | . . 2 . . . 2 . . Power . | . . . . . . . . . Propulsion 2 | . . 1 . . . 1 . . Utility 2 | . . 1 . . . 1 . . Weapon . | . . . . . . . . . Parts Attached 36 | 7 1 1 4 1 2 4 16 . Power 8 | 1 . . 1 . 1 1 4 . Engine 4 | 1 . . 1 . . . 2 . Core 4 | . . . . . 1 1 2 . Reactor . | . . . . . . . . . Propulsion 8 | 2 . . 1 . . 1 4 . Treads 4 | 2 . . . . . . 2 . Leg . | . . . . . . . . . Wheel 1 | . . . 1 . . . . . Hover 2 | . . . . . . . 2 . Flight 1 | . . . . . . 1 . . Utility 12 | 2 1 1 . 1 . 1 6 . Device 7 | 1 . 1 . 1 . . 4 . Storage 2 | 1 1 . . . . . . . Processor . | . . . . . . . . . Hackware 1 | . . . . . . . 1 . Protection 2 | . . . . . . 1 1 . Artifact . | . . . . . . . . . Weapon 8 | 2 . . 2 . 1 1 2 . Energy Gun 3 | 1 . . 1 . . 1 . . Energy Cannon 1 | . . . . . 1 . . . Ballistic Gun 2 | 1 . . . . . . 1 . Ballistic Cannon . | . . . . . . . . . Launcher 1 | . . . 1 . . . . . Special Weapon . | . . . . . . . . . Impact Weapon . | . . . . . . . . . Slashing Weapon 1 | . . . . . . . 1 . Piercing Weapon . | . . . . . . . . . Special Melee Weapon . | . . . . . . . . . Unidentified Prototypes 1 | . . 1 . . . . . . Parts Lost 27 | . . . 7 . . . 18 2 Power 7 | . . . 1 . . . 5 1 Propulsion 8 | . . . 2 . . . 6 . Utility 7 | . . . 1 . . . 5 1 Weapon 5 | . . . 3 . . . 2 . Highest Loss Streak 5 | . . . 5 . . . 3 2 To Critical Strikes . | . . . . . . . . . Average Backups 9 | 1 4 6 8 8 9 9 12 12 Power . | . 1 1 1 1 1 1 . . Propulsion . | . 1 1 . . 1 1 . . Utility 5 | . 1 3 4 5 5 4 8 10 Weapon 1 | . . 1 1 2 2 2 2 2 Tool/Special . | . . . . . . . . . Unused Backups 10 | . . . 1 . . . . 9 Power . | . . . . . . . . . Propulsion . | . . . . . . . . . Utility 8 | . . . . . . . . 8 Weapon 2 | . . . 1 . . . . 1 Tool/Special . | . . . . . . . . . Average Slot Usage (%) 72 | . 100 88 82 53 61 69 64 40 Engine 9 | . 14 11 19 11 11 1 4 7 Core 3 | . . . . . 3 16 7 . Treads 9 | . 28 22 20 . . . 3 . Wheel 1 | . . . . 11 11 . . . Hover 1 | . . . . . . . 3 . Flight 2 | . . . . . . 8 4 . Device 10 | . 14 22 11 9 11 11 7 9 Storage 10 | . 14 11 11 11 11 9 9 9 Hackware 3 | . . . . . . . 7 6 Protection 1 | . . . . . . 5 1 . Energy Gun 7 | . 14 11 8 11 11 9 2 . Ballistic Gun 6 | . 14 11 9 . . . 5 . Slashing Weapon 3 | . . . . . . . 8 9 Peak Build Rating 68 | 7 9 21 25 22 27 59 68 24 Average Rating 30 | 5 7 21 22 19 23 58 44 22 On Entrance 19 | . 7 9 21 6 22 27 59 24 Avg Prop Armor Cover (%) 4 | . . . . . . . 4 . Naked Turns . | . . . . . . . . . Heaviest Build 48 | 14 29 30 46 32 41 43 48 30 Greatest Support 50 | 40 40 40 40 10 10 50 50 3 Greatest Overweight (x) 11 | . . . 3 3 4 . 11 9 Average Overweight (x) 1 | . . . . 3 3 . . 8 Largest Inventory Capacity 16 | 8 15 15 15 15 15 15 16 16 Average Capacity 14 | 7 12 15 15 15 15 15 15 16 Most Carried 14 | 3 7 7 10 12 12 13 14 12 Average Carried 9 | 1 4 6 8 9 12 8 12 12 Final Capacity 16 | 8 15 15 15 15 15 15 16 16 Final Carried 12 | 3 7 7 8 12 12 9 12 12 Class Distribution -------------------- 91% | Mutant 8% | Scavenger-Mutant Dominant Class ---------------- Mutant | -10/Materials Mutant | -9/Materials Mutant | -9/Mines Mutant | -9/Exiles Mutant | -8/Mines Mutant | -8/Materials Mutant | -8/Garrison Mutant | -8/Storage Resources | -11 -10 -9 -9 -9 -8 -8 -8 -8 ----------- Run | Yrd Mat Mat Min Exi Min Mat Gar Sto Matter Collected 1241 | 309 73 . 70 . . 145 644 . Remotely . | . . . . . . . . . Salvage Created 1534 | 116 209 . 81 . . 145 983 . Parts 100 | 9 22 . 7 . . 2 60 . Haulers Intercepted 2 | . . . . . . 2 . . Recyclers Shooed . | . . . . . . . . . Parts Field Recycled . | . . . . . . . . . Retrieved Matter . | . . . . . . . . . Parts Self-Destructed . | . . . . . . . . . Prevented . | . . . . . . . . . Parts Restored . | . . . . . . . . . Kills | -11 -10 -9 -9 -9 -8 -8 -8 -8 ------- Run | Yrd Mat Mat Min Exi Min Mat Gar Sto Combat Hostiles Destroyed 37 | . 6 . 3 . . 1 27 . Melee 10 | . . . . . . . 10 . Guns 25 | . 6 . 2 . . . 17 . Cannons 1 | . . . . . . 1 . . AOE 1 | . . . 1 . . . . . Classes Destroyed 12 | 3 4 . 1 . . 2 2 . Worker 1 | 1 . . . . . . . . Builder 1 | . 1 . . . . . . . Tunneler 3 | 1 . . 2 . . . . . Hauler 2 | . . . . . . 2 . . Recycler 1 | 1 . . . . . . . . Operator 1 | . 1 . . . . . . . Swarmer 15 | . 3 . 2 . . . 10 . Grunt 10 | . 3 . . . . . 7 . Brawler 2 | . . . . . . 1 1 . Sentry 3 | . . . 1 . . . 2 . Hunter 4 | . . . . . . . 4 . Programmer 3 | . . . . . . . 3 . Best Kill Streak 7 | 2 4 . 3 . . 2 7 . Combat Bots Only 7 | . 4 . 1 . . 1 7 . Max Kills in Single Turn 2 | 1 1 . 2 . . 1 2 . Gunslinging . | . . . . . . . . . Exploded 1 | . . . 1 . . . . . Melee 1 | . . . . . . . 1 . Uniques/NPCs Destroyed . | . . . . . . . . . Combat | -11 -10 -9 -9 -9 -8 -8 -8 -8 -------- Run | Yrd Mat Mat Min Exi Min Mat Gar Sto Hostile Shots Fired 367 | . 23 5 103 . . 2 216 18 Missed 97 | . 4 2 30 . . 1 56 4 Hits 270 | . 19 3 73 . . 1 160 14 Melee 2 | . . . . . . . 2 . Projectile 268 | . 19 3 73 . . 1 158 14 Critical Strikes 15 | . . . 1 . . . 12 2 Damage Taken 4132 | . 167 48 849 . . 9 2860 199 Core 1105 | . 51 . 218 . . . 741 95 Absorbed by Shields . | . . . . . . . . . Ignored by Resistances 49 | . . . . . . . 49 . Core Remaining (%) 74 | 100 79 . . . 45 . . . Volleys Fired 114 | 13 21 1 7 . . 8 64 . Largest 2 | 2 2 1 2 . . 2 2 . Hottest 119 | 60 60 20 60 . . 119 93 . Shots Fired 172 | 26 40 1 13 . 1 16 75 . Gun 159 | 26 40 1 8 . 1 8 75 . Cannon 8 | . . . . . . 8 . . Launcher 5 | . . . 5 . . . . . Special . | . . . . . . . . . Kinetic 97 | 13 21 1 6 . . . 56 . Thermal 62 | 13 19 . 2 . 1 8 19 . Explosive 5 | . . . 5 . . . . . Electromagnetic 8 | . . . . . . 8 . . Robot Hit Streak 9 | 4 9 . 4 . 5 8 6 . Robot Miss Streak 4 | 2 4 1 2 . . 3 3 . Penetration Max 1 | . . . . . . . 1 . Secondary Targets 3 | . . . . . . . 3 . Max Gunslinging Chain 1 | . . . . . . . 1 . Shots Hit Robots 128 | 14 26 . 4 . 1 9 71 3 Core Hits 60 | 4 12 . 9 . . 3 32 . Critical Kills 4 | . . . . . . . 4 . Critical Parts Destroyed . | . . . . . . . . . Critical Strikes 7 | . . . . . . . 7 . Destroy 4 | . . . . . . . 4 . Sever 3 | . . . . . . . 3 . Melee Attacks 91 | . . . . . . . 88 3 Impact . | . . . . . . . . . Slashing 91 | . . . . . . . 88 3 Piercing . | . . . . . . . . . Sneak Attacks 1 | . . . . . . . 1 . Combat Hostiles . | . . . . . . . . . Follow-up Attacks . | . . . . . . . . . Damage Inflicted 3324 | 158 326 . 263 . 12 185 2267 113 Guns 1669 | 158 326 . 68 . 12 68 1037 . Cannons 117 | . . . . . . 117 . . Explosions 195 | . . . 195 . . . . . Melee 1343 | . . . . . . . 1230 113 Ramming . | . . . . . . . . . Kinetic 1171 | 33 179 . 56 . . . 903 . Thermal 498 | 125 147 . 12 . 12 68 134 . Explosive 195 | . . . 195 . . . . . Electromagnetic 117 | . . . . . . 117 . . Impact . | . . . . . . . . . Slashing 1343 | . . . . . . . 1230 113 Piercing . | . . . . . . . . . Highest Corruption 12 | . . . . . . . 12 12 Average Corruption 10 | . . . . . . . 10 12 Corruption Purged . | . . . . . . . . . Corruption Blocked . | . . . . . . . . . Effects 42 | . . . . . . . 39 3 Message Errors 6 | . . . . . . . 5 1 Matter Fused 14 | . . . . . . . 14 . Heat Flow Errors 6 | . . . . . . . 6 . Energy Discharges 3 | . . . . . . . 2 1 Parts Rejected 1 | . . . . . . . 1 . Data Loss (minor) 4 | . . . . . . . 4 . Data Loss (major) 2 | . . . . . . . 2 . Misfires 2 | . . . . . . . 2 . Alerts 1 | . . . . . . . . 1 Misdirections 2 | . . . . . . . 2 . Weapon Failures 1 | . . . . . . . 1 . Overload Shots . | . . . . . . . . . Overflow Damage 28 | . . . 2 . . . 26 . Projectiles . | . . . . . . . . . Explosions 2 | . . . 2 . . . . . Melee 26 | . . . . . . . 26 . Knockbacks . | . . . . . . . . . Impact . | . . . . . . . . . Kinetic . | . . . . . . . . . Secondary . | . . . . . . . . . Self-Inflicted Damage 111 | . . . 76 . . . 35 . Shots 4 | . . . 3 . . . 1 . Rammed . | . . . . . . . . . Targets Rammed . | . . . . . . . . . Kicked . | . . . . . . . . . Crushed . | . . . . . . . . . Highest Temperature 453 | . 6 . 45 . 16 453 368 1 Average Temperature 129 | . 6 . 15 . 9 229 121 1 Received Heat Transfer 813 | . 30 9 225 . . . 459 90 Effects 6 | . . . . . . 4 2 . Shutdowns 3 | . . . . . . 2 1 . Energy Bleed 1 | . . . . . . 1 . . Interference 1 | . . . . . . . 1 . Damage (minor) 1 | . . . . . . 1 . . Siege Activations . | . . . . . . . . . Martial Activations . | . . . . . . . . . Shielding Activations . | . . . . . . . . . Robots Disrupted . | . . . . . . . . . Combat Hostiles . | . . . . . . . . . Robots Corrupted . | . . . . . . . . . Combat Hostiles . | . . . . . . . . . Parts Fried . | . . . . . . . . . Impact Corruptions . | . . . . . . . . . Robots Melted . | . . . . . . . . . Combat Hostiles . | . . . . . . . . . Parts Melted 1 | . . . . . . 1 . . Heat Transferred 1094 | 275 325 . 25 . 25 148 296 . Parts Sabotaged . | . . . . . . . . . Parts Stolen . | . . . . . . . . . Parts Stripped . | . . . . . . . . . Power Chain Reactions . | . . . . . . . . . Alert | -11 -10 -9 -9 -9 -8 -8 -8 -8 ------- Run | Yrd Mat Mat Min Exi Min Mat Gar Sto Maximum Alert Level 3 | . . . . . . . 3 2 Low Security (%) 59 | 100 100 100 100 . 100 100 13 . Level 1 11 | . . . . . . . 25 13 Level 2 8 | . . . . . . . 16 86 Level 3 20 | . . . . . . . 44 . Level 4 . | . . . . . . . . . Level 5 . | . . . . . . . . . High Security . | . . . . . . . . . Max Security . | . . . . . . . . . Peak Influence 919 | 5 111 3 68 . . 20 919 438 Initial 438 | . 3 3 . . . . 5 438 Average 265 | . 53 1 3 . . 7 552 422 Influence Increases 1520 | 15 176 . 186 . . 49 1094 . Destroy 0b10 Robot/C 800 | . 120 . 100 . . 20 560 . Destroy 0b10 Robot/NC 45 | 15 10 . 10 . . 10 . . Destroy Leader 64 | . 30 . 10 . . 4 20 . Allied During Kill 8 | . . . 3 . . . 5 . Successful Hack 6 | . . . . . . . 6 . Disable Machine 30 | . . . . . . 15 15 . Anti-Garrison Action 250 | . . . . . . . 250 . Destroy Structure 107 | . 1 . 33 . . . 73 . Partial Spotted 15 | . . . . . . . 15 . Lose Combat Pursuer 195 | . 15 . 30 . . . 150 . Influence Decreases 1122 | 10 171 10 124 62 . 40 204 501 Entered New Map 536 | . 2 7 . 62 . . 4 461 Time Decay 316 | 10 169 3 74 . . 40 . 20 Lost Part 230 | . . . 30 . . . 180 20 Lost Ally 40 | . . . 20 . . . 20 . Squads Dispatched 3 | . 2 . . . . 1 . . Investigation . | . . . . . . . . . Extermination . | . . . . . . . . . Reinforcement 3 | . 2 . . . . 1 . . Assault . | . . . . . . . . . Garrison . | . . . . . . . . . Intercept . | . . . . . . . . . Searches Triggered . | . . . . . . . . . Construction Impeded . | . . . . . . . . . Haulers Reinforced . | . . . . . . . . . Active Scanning Responses . | . . . . . . . . . Cargo Convoy Interrupts . | . . . . . . . . . Stealth | -11 -10 -9 -9 -9 -8 -8 -8 -8 --------- Run | Yrd Mat Mat Min Exi Min Mat Gar Sto Distress Signals . | . . . . . . . . . Communications Jammed . | . . . . . . . . . Distress Signals . | . . . . . . . . . Times Spotted 54 | . 7 1 6 . . 6 33 1 Peak Tracking Total 8 | . 4 3 4 . . 4 8 1 Tactical Retreats 6 | . 1 . 1 . . . 4 . Traps | -11 -10 -9 -9 -9 -8 -8 -8 -8 ------- Run | Yrd Mat Mat Min Exi Min Mat Gar Sto Traps Triggered 4 | . . . . . . . 4 . Indirectly . | . . . . . . . . . Trap Hack Attempts . | . . . . . . . . . Triggered . | . . . . . . . . . Disarmed . | . . . . . . . . . Reprogrammed . | . . . . . . . . . Reused . | . . . . . . . . . Traps Extracted . | . . . . . . . . . Installed . | . . . . . . . . . Triggered . | . . . . . . . . . Machines | -11 -10 -9 -9 -9 -8 -8 -8 -8 ---------- Run | Yrd Mat Mat Min Exi Min Mat Gar Sto Machines Disabled 5 | . . . . . . 1 4 . Max in Single Turn 2 | . . . . . . 1 2 . Garrison Relay 1 | . . . . . . . 1 . Phase Generator 1 | . . . . . . . 1 . Machines Repaired . | . . . . . . . . . Machines Dismantled . | . . . . . . . . . Machines Sabotaged . | . . . . . . . . . Overloaded Fab Kills . | . . . . . . . . . Hacking | -11 -10 -9 -9 -9 -8 -8 -8 -8 --------- Run | Yrd Mat Mat Min Exi Min Mat Gar Sto Machines Accessed 6 | . 1 . 1 1 . 1 2 . Terminals 3 | . 1 . . . . . 2 . Fabricators . | . . . . . . . . . Repair Stations . | . . . . . . . . . Recycling Units . | . . . . . . . . . Scanalyzers . | . . . . . . . . . Garrison Access 1 | . . . . . . 1 . . Total Hacks 10 | . 1 . 1 1 . 2 5 . Successful 5 | . . . 1 1 . 1 2 . Failed 5 | . 1 . . . . 1 3 . Catastrophic 1 | . 1 . . . . . . . Database Lockouts . | . . . . . . . . . Manual 3 | . 2 . . 1 . . . . Terminals 6 | . 1 . . . . . 5 . Fabricators . | . . . . . . . . . Repair Stations . | . . . . . . . . . Recycling Units . | . . . . . . . . . Scanalyzers . | . . . . . . . . . Garrison Access 2 | . . . . . . 2 . . Terminal Hacks 4 | . . . 1 1 . . 2 . Open Door 2 | . . . 1 . . . 1 . Security Stations 1 | . . . . . . . 1 . Proto ID Catalog 1 | . . . . 1 . . . . Fabricator Hacks . | . . . . . . . . . Repair Station Hacks . | . . . . . . . . . Recycling Unit Hacks . | . . . . . . . . . Scanalyzer . | . . . . . . . . . Garrison Access Hacks 1 | . . . . . . 1 . . Unlock Access 1 | . . . . . . 1 . . Unauthorized Hacks . | . . . . . . . . . Terminals . | . . . . . . . . . Fabricators . | . . . . . . . . . Repair Stations . | . . . . . . . . . Recycling Units . | . . . . . . . . . Scanalyzers . | . . . . . . . . . Garrison Access . | . . . . . . . . . Data Cores Recovered . | . . . . . . . . . Used . | . . . . . . . . . Hacking Detections 3 | . 1 . . . . . 2 . Full Trace Events 1 | . . . . . . . 1 . Feedback Events . | . . . . . . . . . Feedback Blocked . | . . . . . . . . . Robot Schematics Acquired . | . . . . . . . . . Robots Built . | . . . . . . . . . Authchips . | . . . . . . . . . Time . | . . . . . . . . . Total Robot Build Rating . | . . . . . . . . . Part Schematics Acquired . | . . . . . . . . . Parts Built . | . . . . . . . . . Authchips . | . . . . . . . . . Time . | . . . . . . . . . Total Part Build Rating . | . . . . . . . . . Part Studies Acquired . | . . . . . . . . . Parts Repaired . | . . . . . . . . . Time . | . . . . . . . . . Parts Recycled . | . . . . . . . . . Recycled Matter . | . . . . . . . . . Retrieved Matter . | . . . . . . . . . Retrieved Components . | . . . . . . . . . Parts Scanalyzed . | . . . . . . . . . Part Schematics Acquired . | . . . . . . . . . Parts Damaged . | . . . . . . . . . Bothacking | -11 -10 -9 -9 -9 -8 -8 -8 -8 ------------ Run | Yrd Mat Mat Min Exi Min Mat Gar Sto Used RIF Installer 1 | . . . . . . . 1 . Robots Hacked . | . . . . . . . . . Non-combat . | . . . . . . . . . Combat . | . . . . . . . . . Robot Hacks Applied . | . . . . . . . . . Relay Couplers Released 5 | . . . . . . . 5 . Machine Destruction 5 | . . . . . . . 5 . Fabnet Peak Effective % . | . . . . . . . . . Robots Rewired . | . . . . . . . . . Allies Hacked . | . . . . . . . . . Hacks Repelled . | . . . . . . . . . Allies | -11 -10 -9 -9 -9 -8 -8 -8 -8 -------- Run | Yrd Mat Mat Min Exi Min Mat Gar Sto Total Allies 5 | . . . 4 . . . 1 . Largest Group 3 | . . . 3 . . . 1 . Highest-Rated Group 40 | . . . 40 . . . 31 . Highest-Rated Ally 31 | . . . 31 . . . 31 . Total Orders . | . . . . . . . . . Ally Attacks 29 | . . . 12 . . . 17 . Total Damage 445 | . . . 169 . . . 276 . Kills 3 | . . . 2 . . . 1 . Allies Corrupted . | . . . . . . . . . Allies Melted . | . . . . . . . . . X0-1V1 Amusement Gains 129 | . 14 . 15 . . . 80 20 Good Acts 20 | . . . 2 . . 2 15 1 Bad Acts 16 | . . . 5 . 3 2 6 . Intel | -11 -10 -9 -9 -9 -8 -8 -8 -8 ------- Run | Yrd Mat Mat Min Exi Min Mat Gar Sto Active Infowar (turns) 630 | 55 439 41 72 . . 23 . . Seismic 630 | 55 439 41 72 . . 23 . . Robot Analysis Total . | . . . . . . . . . Derelict Logs Recovered 1 | . . . 1 . . . . . Drone Launches . | . . . . . . . . . Drone Recoveries . | . . . . . . . . . Exploration | -11 -10 -9 -9 -9 -8 -8 -8 -8 ------------- Run | Yrd Mat Mat Min Exi Min Mat Gar Sto Turns Passed 3783 | 157 439 41 820 280 287 117 1596 46 Spaces Moved 2371 | 73 203 24 425 223 220 168 1027 8 Core 68 | 10 . . . . . . 50 8 Treads 807 | 63 203 24 367 . . . 150 . Legs . | . . . . . . . . . Wheels 501 | . . . 58 223 220 . . . Hover 112 | . . . . . . . 112 . Flight 883 | . . . . . . 168 715 . Fastest Speed 50 | 50 160 160 125 125 125 50 50 450 Average Speed 128 | 144 160 160 186 125 129 50 106 493 Slowest Speed 600 | 160 160 160 240 125 140 50 600 500 Overloaded Moves . | . . . . . . . . . Propulsion Burnouts . | . . . . . . . . . Robots Hopped 1 | . . . . . . 1 . . Potential Cave-ins 33 | . . . . . . . 33 . Cave-ins Triggered 2 | . . . . . . . 2 . Exploration Rate (%) 41 | 4 31 3 93 61 56 21 97 4 Regions Visited 8 Branch Regions 4 Pre-discovered Areas 1 | . . . 1 . . . . . Known Exits Taken 2 | . . . 1 . . 1 . . Unknown Exits Taken 5 | 1 1 1 . 1 1 . . . Scrap Searched 1 | . . . 1 . . . . . Spaces Dug 44 | . . . . . . . 44 . Terrain Destroyed 162 | . . . 41 . . . 121 . Melee 43 | . . . . . . . 43 . Projectile 3 | . . . . . . . 3 . AOE 116 | . . . 41 . . . 75 . Terrain Rammed . | . . . . . . . . . Walls Destroyed . | . . . . . . . . . Machines Disabled . | . . . . . . . . . Actions | -11 -10 -9 -9 -9 -8 -8 -8 -8 --------- Run | Yrd Mat Mat Min Exi Min Mat Gar Sto Total 2777 | 95 277 26 441 224 221 182 1300 11 Wait 98 | . 48 . . . . . 50 . Move 2357 | 72 202 23 424 222 219 166 1021 8 Hop 1 | . . . . . . 1 . . Pick Up 20 | 3 4 1 4 1 . 1 6 . Fast Attach 23 | 7 . . 1 1 2 . 12 . Attach 10 | . . 1 2 . . 2 5 . Detach 2 | . . . . . . 1 1 . Swap 11 | . 1 . 1 . . 3 6 . Drop 4 | . 1 . 2 . . . 1 . Fire 114 | 13 21 1 7 . . 8 64 . Melee 91 | . . . . . . . 88 3 Ram . | . . . . . . . . . Kick . | . . . . . . . . . Crush . | . . . . . . . . . Escape Stasis 41 | . . . . . . . 41 . Rewire . | . . . . . . . . . Trap . | . . . . . . . . . Miscellaneous 5 | . . . . . . . 5 . Route ------- -11/Scrapyard -10/Materials (discovered 3 exits: [*Mat] / [*Min] / [*Sub]) -9/Materials -9/Mines (discovered 4 exits: *Mat x2 / *Exi / [*Zio]) -9/Exiles -8/Mines -8/Materials -8/Garrison (discovered 3 exits: [*Sto x3]) -8/Storage History --------- Turn | Location | Event 7 | -11/Scrapyard | Discovered new exit (range 16) 158 | -11/Scrapyard | Entered Materials 322 | -10/Materials | Build established: Mutant 391 | -10/Materials | Discovered new exit (range 16) 463 | -10/Materials | Discovered new exit (range 15) 570 | -10/Materials | Discovered new exit (range 9) 586 | -10/Materials | Prayed at D.C.S.S. Altar Unit 597 | -10/Materials | Entered another Materials area 597 | -9/Materials | Evolved 2 slots: Propulsion x1, Utility x1 598 | -9/Materials | Discovered new exit (range 9) 638 | -9/Materials | Entered Mines 710 | -9/Mines | X0-1V1 mutated your Utility slot to Power slot 887 | -9/Mines | Assisted by bots powering up and referring to "LRC-V3" 912 | -9/Mines | Learned location of Zion (-7) 952 | -9/Mines | Met a Derelict who couldn't figure out how to use a Trap Extractor 994 | -9/Mines | Discovered new exit (range 6) 1005 | -9/Mines | A Derelict revealed a hidden shortcut to a safe place 1169 | -9/Mines | Identified exit to Exiles 1169 | -9/Mines | X0-1V1 revealed exit location to -9/Exiles 1228 | -9/Mines | Lost 3 allies 1328 | -9/Mines | X0-1V1 sent hostile S-10 Pest (x3) 1424 | -9/Mines | Core integrity fell below 50% 1438 | -9/Mines | Discovered new exit (range 5) 1441 | -9/Mines | Received a Mining Laser from a helpful Derelict 1445 | -9/Mines | Lost 5 parts (1p2n1u1w) 1452 | -9/Mines | Deemed a non-threat by the Exiles lab entrance 1458 | -9/Mines | Entered Exiles 1494 | -9/Exiles | Met 8R-AWN 1512 | -9/Exiles | Met EX-HEX 1550 | -9/Exiles | Met EX-BIN 1565 | -9/Exiles | Aligned with FarCom system 1566 | -9/Exiles | Given EX-Vault access code 1596 | -9/Exiles | Opened EX-Vault 1607 | -9/Exiles | Found Flying Fortress v7 1633 | -9/Exiles | Warned to stay clear of 0b10 Research branches 1672 | -9/Exiles | Met EX-DEC 1725 | -9/Exiles | Discovered new exit (range 14) 1738 | -9/Exiles | Left Exiles lab with Flying Fortress v7 1738 | -9/Exiles | Entered Mines 2013 | -8/Mines | Discovered new exit (range 9) 2025 | -8/Mines | Entered Materials 2025 | -8/Materials | Evolved 2 slots: Propulsion x1, Utility x1 2046 | -8/Materials | X0-1V1 sent hostile B-36 Bruiser (x1) 2112 | -8/Materials | X0-1V1 released a cloud of subatomizers 2142 | -8/Materials | Identified exit to Garrison 2142 | -8/Materials | Entered Garrison 2180 | -8/Garrison | Garrison Relay disabled 2260 | -8/Garrison | Phase Generator disabled 2428 | -8/Garrison | Triggered checkpoint 2481 | -8/Garrison | Learned Storage security intel 2538 | -8/Garrison | Triggered checkpoint 2559 | -8/Garrison | Discovered new exit (range 10) 2620 | -8/Garrison | Attempted to access garrison exit controls, blocked by remote lockdown 2632 | -8/Garrison | Triggered checkpoint 2656 | -8/Garrison | Crushed by falling debris 2732 | -8/Garrison | Crushed by falling debris 2777 | -8/Garrison | Core integrity fell below 50% 2810 | -8/Garrison | Destroyed 7 combat bots 2827 | -8/Garrison | Core integrity restored by X0-1V1 (+88) 2828 | -8/Garrison | Discovered new exit (range 11) 2833 | -8/Garrison | Inventory capacity permanently improved by X0-1V1 (+1; -100 max core) 2863 | -8/Garrison | System corruption reached 10% 2893 | -8/Garrison | Lost 3 parts (1p2n) 2926 | -8/Garrison | X0-1V1 sent hostile B-36 Bruiser (x1) 3006 | -8/Garrison | Rescued a captive Derelict 3151 | -8/Garrison | Triggered checkpoint 3153 | -8/Garrison | X0-1V1 downgraded hostiles (x1) 3215 | -8/Garrison | Core integrity fell below 20% 3252 | -8/Garrison | Triggered checkpoint 3301 | -8/Garrison | Discovered new exit (range 19) 3366 | -8/Garrison | Triggered checkpoint 3425 | -8/Garrison | Installed Relay Interface Framework 3472 | -8/Garrison | Core integrity restored by X0-1V1 (+81) 3482 | -8/Garrison | Lost 3 parts (1n2w) 3738 | -8/Garrison | Entered Storage 3784 | -8/Storage | Destroyed by Y-45 Defender with Heavy Assault Rifle Last Messages --------------- 03733_ Attempting to access garrison exit controls... RIF authorized. LOCATION=UNKNOWN GOAL=ESCAPE 03738_ Receiving FarCom transmissions... Loading Storage security intel (x10)... 03740_ System corrupted: IFF burst signal emitted. 03740_ X0-1V1 is amused. 03757_ System corrupted: Energy discharge (-346). 03761_ Hacking Suite destroyed. 03767_ Critical hit (Burn: +37). 03770_ Ion Engine destroyed. 03773_ X0-1V1: "A slightly more accurate toy is still a toy." (+10% melee accuracy) 03778_ Critical hit (Burn: +37). 03784_ LZS#YNA%=WZE:ZBVZOOR2RV<#/<3,2BYARGMRB 03784_ X0-1V1 snickers! Map ----- +----------------------------------------------------+ | | | | | | | | | | | | | | | | | | | | | | | | | | | | | | | | | | | ????????????????????????????????????????? | | ????????????????????????????????????????? | | ????????????????????????????????????????? | | ???????####?????????????????????????????? | | ???????#T"#??????######?????????????????? | | ??????## "####### #######???????????? | | ??????# / ????????? | | ??????# T ????????? | | ??????# @Y ????????? | | ??????########### ####??????????????? | | ?????????????????# ##?????????????????? | | ?????????????????? #??????????????????? | | ??????????????????? #??????????????????? | | ???????????????????? #??????????????????? | | ?????????????????????#??????????????????? | | ????????????????????????????????????????? | | ????????????????????????????????????????? | | ????????????????????????????????????????? | | ????????????????????????????????????????? | | ????????????????????????????????????????? | | ????????????????????????????????????????? | | ???????????????Y????????????????????????? | | ????????????????????????????????????????? | | ????????????????????????????????????????? | | ????????????????????????????????????????? | | ????????????????????????????????????????? | | ????????????????????????????????????????? | | ????????????????????????????????????????? | | ????????????????????????????????????????? | | ????????????????????????????????????????? | | ????????????????????????????????????????? | | ????????????????????????????????????????? | | ????????????????????????????????????????? | +----------------------------------------------------+ Best States ------------- Heat Dissipation 31 Energy Generation 27 Energy Capacity 1110 Matter Stores 465 Matter Capacity 700 Sight Range 22 Terrain Scan Density 10 Armor Coverage 150 Resistance: KI 17 Evasion (%) 60 Recoil Reduction 2 Offensive Hacking 10 Authchip Count 1 Item Schematics ----------------- None Robot Schematics ------------------ None Fabricated ------------ Nothing Repaired ---------- Nothing Studied --------- None Alien Tech Used ----------------- None Achievements -------------- None Challenges ------------ None Game ------ Seed GhostWeaponsMaxwheels Manual? 0 Play Time 00:21:35 Cumulative 123.3 hours Start 2026.07.14 @ 23:14:29 End 2026.07.14 @ 23:36:00 Sessions 1 Manual Loads 0 Difficulty Rogue Special Mode None Game No. 262 Rogue 262 Adventurer 0 Explorer 0 Win Type - Total 0 Types 0/0/0/0/0/0/0/0/0/0 Lore% 53 Gallery% 52 Achievement% 41 Wizard Run 0 Options --------- Layout 2 ASCII 0 Keyboard 1 Movement Arrows Keybinds 0 Fullscreen 1 Font 24/Smallcaps Map View 50x44 Zoom Use 0% Tactical HUD 1 Map Filters NONE Filters NONE Steam 1 RUN: 218c907a-7a17-4bf1-95b8-e359af9c2b0b